[Event "Early-Titled-Tuesday-Blitz-May-07-2024"]
[Site "Chess.com"]
[Date "2024.05.07"]
[Round "5"]
[White "PIwan"]
[Black "HeroWilczek"]
[Result "0-1"]
[WhiteElo "2429"]
[BlackElo "2581"]
[TimeControl "180+1"]
[EndTime "8:58:58 PDT"]
[Termination "HeroWilczek won by resignation"]

1. c4 {[%clk 0:02:59.8]} 1... e5 {[%clk 0:02:59.6]} 2. Nc3 {[%clk 0:02:59.1]}
2... Nf6 {[%clk 0:02:58.3]} 3. Nf3 {[%clk 0:02:54.8]} 3... Nc6 {[%clk
0:02:57.4]} 4. e3 {[%clk 0:02:55]} 4... g6 {[%clk 0:02:52.9]} 5. d4 {[%clk
0:02:54.7]} 5... exd4 {[%clk 0:02:51.9]} 6. exd4 {[%clk 0:02:55.6]} 6... d5
{[%clk 0:02:45.5]} 7. Bg5 {[%clk 0:02:53.8]} 7... Be7 {[%clk 0:02:33.1]} 8. Bxf6
{[%clk 0:02:44.8]} 8... Bxf6 {[%clk 0:02:33.5]} 9. Nxd5 {[%clk 0:02:45.1]} 9...
O-O {[%clk 0:02:34]} 10. Be2 {[%clk 0:02:45.4]} 10... Bg4 {[%clk 0:02:27.9]} 11.
Nxf6+ {[%clk 0:01:35.6]} 11... Qxf6 {[%clk 0:02:28.8]} 12. d5 {[%clk 0:01:36]}
12... Bxf3 {[%clk 0:02:25.7]} 13. gxf3 {[%clk 0:01:31.7]} 13... Nd4 {[%clk
0:02:11.3]} 14. O-O {[%clk 0:01:30.2]} 14... Rfe8 {[%clk 0:02:10.2]} 15. Bd3
{[%clk 0:01:03.2]} 15... Nxf3+ {[%clk 0:02:03.8]} 16. Kg2 {[%clk 0:00:59]} 16...
Re5 {[%clk 0:01:40.3]} 17. Qxf3 {[%clk 0:00:36.2]} 17... Rg5+ {[%clk 0:01:39.9]}
18. Qg3 {[%clk 0:00:37.1]} 18... Re8 {[%clk 0:01:30.1]} 19. b3 {[%clk
0:00:31.9]} 19... Rxg3+ {[%clk 0:01:26.3]} 20. hxg3 {[%clk 0:00:32.8]} 20... Qc3
{[%clk 0:01:22.1]} 21. Rfd1 {[%clk 0:00:25.3]} 21... Kg7 {[%clk 0:01:19]} 22.
Bf1 {[%clk 0:00:25.4]} 22... a5 {[%clk 0:01:14.3]} 23. Rac1 {[%clk 0:00:25.2]}
23... Qb2 {[%clk 0:01:11.2]} 24. c5 {[%clk 0:00:24.3]} 24... Rd8 {[%clk
0:01:03.2]} 25. d6 {[%clk 0:00:16.7]} 25... cxd6 {[%clk 0:00:53.7]} 26. cxd6
{[%clk 0:00:13.7]} 26... Rxd6 {[%clk 0:00:50.4]} 27. Rxd6 {[%clk 0:00:12.4]}
27... Qxc1 {[%clk 0:00:50.3]} 28. Bc4 {[%clk 0:00:12.7]} 28... a4 {[%clk
0:00:29.8]} 29. Rd7 {[%clk 0:00:12.4]} 29... a3 {[%clk 0:00:30.2]} 30. Rxf7+
{[%clk 0:00:12.1]} 30... Kh6 {[%clk 0:00:30]} 31. Rxb7 {[%clk 0:00:11.8]} 31...
Qc2 {[%clk 0:00:22.8]} 32. Bg8 {[%clk 0:00:09.4]} 32... Qc6+ {[%clk 0:00:22.4]}
33. Bd5 {[%clk 0:00:08.8]} 33... Qxd5+ {[%clk 0:00:22.4]} 0-1

[Event "Early-Titled-Tuesday-Blitz-May-07-2024"]
[Site "Chess.com"]
[Date "2024.05.07"]
[Round "5"]
[White "chess_blitz00"]
[Black "average_trans"]
[Result "0-1"]
[WhiteElo "2535"]
[BlackElo "2358"]
[TimeControl "180+1"]
[EndTime "8:58:59 PDT"]
[Termination "average_trans won by checkmate"]

1. c4 {[%clk 0:03:00.9]} 1... c5 {[%clk 0:02:56.7]} 2. Nf3 {[%clk 0:03:00.1]}
2... b6 {[%clk 0:02:56.7]} 3. d4 {[%clk 0:02:58.9]} 3... cxd4 {[%clk 0:02:55.5]}
4. Nxd4 {[%clk 0:02:59.1]} 4... Bb7 {[%clk 0:02:56.1]} 5. Nc3 {[%clk 0:02:59.6]}
5... Nf6 {[%clk 0:02:55.7]} 6. Bg5 {[%clk 0:02:49.1]} 6... h6 {[%clk 0:02:46]}
7. Bxf6 {[%clk 0:02:48.8]} 7... gxf6 {[%clk 0:02:46]} 8. Qd2 {[%clk 0:02:46]}
8... Nc6 {[%clk 0:02:43.7]} 9. O-O-O {[%clk 0:02:44.7]} 9... Nxd4 {[%clk
0:02:40.8]} 10. Qxd4 {[%clk 0:02:44.7]} 10... Qc7 {[%clk 0:02:40.6]} 11. e3
{[%clk 0:02:40.8]} 11... O-O-O {[%clk 0:02:37.2]} 12. Nb5 {[%clk 0:02:39.7]}
12... Qb8 {[%clk 0:02:36.3]} 13. Kb1 {[%clk 0:02:26.3]} 13... a6 {[%clk
0:02:33.1]} 14. Qxb6 {[%clk 0:02:26]} 14... Be4+ {[%clk 0:02:25.1]} 15. Bd3
{[%clk 0:02:24.7]} 15... Bxd3+ {[%clk 0:02:24.3]} 16. Rxd3 {[%clk 0:02:25.3]}
16... Qxb6 {[%clk 0:02:24.8]} 17. Nd4 {[%clk 0:02:25.7]} 17... e6 {[%clk
0:02:12.3]} 18. Rc1 {[%clk 0:02:22.9]} 18... Bc5 {[%clk 0:02:09.9]} 19. Nb3
{[%clk 0:02:15.2]} 19... Kc7 {[%clk 0:02:05]} 20. Rc2 {[%clk 0:02:02.8]} 20...
Rb8 {[%clk 0:02:03.7]} 21. Nd2 {[%clk 0:02:03]} 21... Qc6 {[%clk 0:01:57.7]} 22.
f3 {[%clk 0:02:02.7]} 22... f5 {[%clk 0:01:52]} 23. a3 {[%clk 0:01:56]} 23... a5
{[%clk 0:01:50.1]} 24. e4 {[%clk 0:01:55.7]} 24... fxe4 {[%clk 0:01:48.3]} 25.
Nxe4 {[%clk 0:01:56.6]} 25... f5 {[%clk 0:01:46.9]} 26. Nc3 {[%clk 0:01:49.5]}
26... Kd8 {[%clk 0:01:37.9]} 27. Rcd2 {[%clk 0:01:42.2]} 27... Ke7 {[%clk
0:01:36.9]} 28. Re2 {[%clk 0:01:41.8]} 28... Kf7 {[%clk 0:01:31.2]} 29. Red2
{[%clk 0:01:40]} 29... Rb7 {[%clk 0:01:27.7]} 30. Ka2 {[%clk 0:01:37]} 30...
Rhb8 {[%clk 0:01:26.5]} 31. Nd1 {[%clk 0:01:29.7]} 31... Be7 {[%clk 0:01:23.9]}
32. Rc2 {[%clk 0:01:28.4]} 32... Bf6 {[%clk 0:01:23.2]} 33. g4 {[%clk
0:01:20.7]} 33... fxg4 {[%clk 0:01:19.3]} 34. fxg4 {[%clk 0:01:20.6]} 34... a4
{[%clk 0:01:17.9]} 35. Rdd2 {[%clk 0:01:07.7]} 35... Rb3 {[%clk 0:01:02.1]} 36.
Rf2 {[%clk 0:01:05.6]} 36... Qb6 {[%clk 0:00:47.1]} 37. c5 {[%clk 0:01:01.9]}
37... Rxa3+ {[%clk 0:00:42.7]} 38. Kb1 {[%clk 0:01:02.5]} 38... Qb3 {[%clk
0:00:36.5]} 39. Rcd2 {[%clk 0:00:54.1]} 39... Ke7 {[%clk 0:00:29.2]} 40. h4
{[%clk 0:00:40.2]} 40... Qa2+ {[%clk 0:00:27.5]} 41. Kc1 {[%clk 0:00:38]} 41...
Bxh4 {[%clk 0:00:20.6]} 42. Nc3 {[%clk 0:00:27.2]} 42... Rxc3+ {[%clk 0:00:20]}
43. bxc3 {[%clk 0:00:27.5]} 43... Rb1# {[%clk 0:00:19.9]} 0-1

[Event "Early-Titled-Tuesday-Blitz-May-07-2024"]
[Site "Chess.com"]
[Date "2024.05.07"]
[Round "5"]
[White "Crasmus"]
[Black "RobRam"]
[Result "1-0"]
[WhiteElo "2382"]
[BlackElo "2536"]
[TimeControl "180+1"]
[EndTime "8:59:00 PDT"]
[Termination "Crasmus won on time"]

1. c4 {[%clk 0:03:00.9]} 1... d6 {[%clk 0:03:00.9]} 2. g3 {[%clk 0:03:00]} 2...
g6 {[%clk 0:03:01.2]} 3. Bg2 {[%clk 0:03:00.1]} 3... Bg7 {[%clk 0:03:01.9]} 4.
Nc3 {[%clk 0:03:00.6]} 4... Nf6 {[%clk 0:03:02.5]} 5. d3 {[%clk 0:03:01.1]} 5...
O-O {[%clk 0:03:02.3]} 6. Bg5 {[%clk 0:03:01.4]} 6... h6 {[%clk 0:03:01.6]} 7.
Bd2 {[%clk 0:03:01.1]} 7... e5 {[%clk 0:03:01.2]} 8. Nf3 {[%clk 0:03:01.4]} 8...
Nc6 {[%clk 0:03:01.1]} 9. h4 {[%clk 0:03:01.8]} 9... Bg4 {[%clk 0:02:57.7]} 10.
O-O {[%clk 0:03:01]} 10... Qd7 {[%clk 0:02:57.1]} 11. Rb1 {[%clk 0:03:01.1]}
11... Bh3 {[%clk 0:02:54.6]} 12. b4 {[%clk 0:03:01.5]} 12... Bxg2 {[%clk
0:02:53.8]} 13. Kxg2 {[%clk 0:03:02.4]} 13... Ng4 {[%clk 0:02:46.6]} 14. b5
{[%clk 0:02:51.2]} 14... Nd8 {[%clk 0:02:34]} 15. a4 {[%clk 0:02:38.8]} 15... f5
{[%clk 0:02:32.7]} 16. a5 {[%clk 0:02:27.6]} 16... Ne6 {[%clk 0:02:30.7]} 17. a6
{[%clk 0:02:26]} 17... b6 {[%clk 0:02:28.8]} 18. Nd5 {[%clk 0:02:26.4]} 18... e4
{[%clk 0:02:08.2]} 19. Nh2 {[%clk 0:02:12.7]} 19... Ne5 {[%clk 0:01:54.4]} 20.
Qc2 {[%clk 0:02:02.4]} 20... Nd4 {[%clk 0:01:50.8]} 21. Qd1 {[%clk 0:01:51.8]}
21... Rae8 {[%clk 0:01:22.4]} 22. Be3 {[%clk 0:01:28.4]} 22... Ne6 {[%clk
0:01:14.9]} 23. Qd2 {[%clk 0:01:25.3]} 23... Kh7 {[%clk 0:01:10.8]} 24. Rbe1
{[%clk 0:01:21.9]} 24... Rf7 {[%clk 0:01:10.6]} 25. f4 {[%clk 0:01:13.4]} 25...
exf3+ {[%clk 0:01:06]} 26. exf3 {[%clk 0:01:14.3]} 26... c6 {[%clk 0:00:41.1]}
27. bxc6 {[%clk 0:01:10.5]} 27... Nxc6 {[%clk 0:00:31.3]} 28. Bf2 {[%clk
0:01:10.1]} 28... Rff8 {[%clk 0:00:24.2]} 29. Rb1 {[%clk 0:01:00.2]} 29... Ned4
{[%clk 0:00:21.8]} 30. Rfe1 {[%clk 0:00:57.6]} 30... Rxe1 {[%clk 0:00:19.9]} 31.
Rxe1 {[%clk 0:00:58.4]} 31... Qc8 {[%clk 0:00:18.4]} 32. Ne7 {[%clk 0:00:52.5]}
32... Qxa6 {[%clk 0:00:16.8]} 33. h5 {[%clk 0:00:50.5]} 33... g5 {[%clk
0:00:14.6]} 34. Nxc6 {[%clk 0:00:46.7]} 34... Nxc6 {[%clk 0:00:13.6]} 35. Re6
{[%clk 0:00:47.6]} 35... Qb7 {[%clk 0:00:10.6]} 36. Rxd6 {[%clk 0:00:45.8]}
36... Ne5 {[%clk 0:00:10]} 37. Rd5 {[%clk 0:00:44.2]} 37... f4 {[%clk
0:00:05.1]} 38. g4 {[%clk 0:00:39.8]} 38... Re8 {[%clk 0:00:04.9]} 39. d4 {[%clk
0:00:36.9]} 39... Nxc4 {[%clk 0:00:04.2]} 40. Qc2+ {[%clk 0:00:37.4]} 40... Kh8
{[%clk 0:00:03.1]} 41. Qxc4 {[%clk 0:00:38.1]} 41... Rc8 {[%clk 0:00:02.1]} 42.
Qb3 {[%clk 0:00:37]} 42... Qf7 {[%clk 0:00:01.3]} 43. Rd8+ {[%clk 0:00:35.9]}
1-0

[Event "Early-Titled-Tuesday-Blitz-May-07-2024"]
[Site "Chess.com"]
[Date "2024.05.07"]
[Round "5"]
[White "LeninGuerra"]
[Black "super_emi_26"]
[Result "1-0"]
[WhiteElo "2669"]
[BlackElo "2872"]
[TimeControl "180+1"]
[EndTime "8:59:01 PDT"]
[Termination "LeninGuerra won by resignation"]

1. e4 {[%clk 0:03:00.9]} 1... e5 {[%clk 0:02:56.8]} 2. Nf3 {[%clk 0:03:00]} 2...
Nc6 {[%clk 0:02:56.9]} 3. Bb5 {[%clk 0:03:00.6]} 3... Nf6 {[%clk 0:02:57.2]} 4.
Qe2 {[%clk 0:03:00.4]} 4... Bc5 {[%clk 0:02:42.5]} 5. O-O {[%clk 0:02:59.7]}
5... O-O {[%clk 0:02:41.2]} 6. Rd1 {[%clk 0:02:58.8]} 6... d6 {[%clk 0:02:39.8]}
7. c3 {[%clk 0:02:58.3]} 7... Bg4 {[%clk 0:02:33.7]} 8. h3 {[%clk 0:02:57.2]}
8... Bh5 {[%clk 0:02:33.9]} 9. d3 {[%clk 0:02:57]} 9... a6 {[%clk 0:02:33.2]}
10. Ba4 {[%clk 0:02:56.2]} 10... Nd7 {[%clk 0:02:31.4]} 11. g4 {[%clk
0:02:52.8]} 11... Bg6 {[%clk 0:02:31.3]} 12. Nbd2 {[%clk 0:02:52.8]} 12... Kh8
{[%clk 0:02:30.6]} 13. Nf1 {[%clk 0:02:52.4]} 13... b5 {[%clk 0:02:28.7]} 14.
Bb3 {[%clk 0:02:51.9]} 14... Bb6 {[%clk 0:02:23.5]} 15. Ng3 {[%clk 0:02:51.7]}
15... Nc5 {[%clk 0:02:24.2]} 16. Bc2 {[%clk 0:02:50.1]} 16... Ne6 {[%clk
0:02:23.4]} 17. Nf5 {[%clk 0:02:47.2]} 17... f6 {[%clk 0:02:18.4]} 18. Kh2
{[%clk 0:02:42.2]} 18... d5 {[%clk 0:02:11.8]} 19. a4 {[%clk 0:02:28.1]} 19...
b4 {[%clk 0:02:10.4]} 20. Bb3 {[%clk 0:02:11.9]} 20... dxe4 {[%clk 0:02:06.9]}
21. dxe4 {[%clk 0:02:08.2]} 21... Qe8 {[%clk 0:02:05.9]} 22. Bd5 {[%clk
0:02:03.9]} 22... Rd8 {[%clk 0:01:57.3]} 23. Qxa6 {[%clk 0:01:49.6]} 23... Nf4
{[%clk 0:01:57.1]} 24. Bxf4 {[%clk 0:01:48.9]} 24... exf4 {[%clk 0:01:57.7]} 25.
a5 {[%clk 0:01:43]} 25... bxc3 {[%clk 0:01:44.4]} 26. axb6 {[%clk 0:01:38.8]}
26... Nb4 {[%clk 0:01:44]} 27. Qc4 {[%clk 0:01:35.9]} 27... cxb2 {[%clk
0:01:43]} 28. Rab1 {[%clk 0:01:30.4]} 28... Nxd5 {[%clk 0:01:42.6]} 29. exd5
{[%clk 0:01:25.7]} 29... cxb6 {[%clk 0:01:42.1]} 30. Rxb2 {[%clk 0:01:24.7]}
30... Qf7 {[%clk 0:01:24.6]} 31. Qxf4 {[%clk 0:01:22.1]} 31... Rxd5 {[%clk
0:01:24]} 32. Rxd5 {[%clk 0:01:22.4]} 32... Qxd5 {[%clk 0:01:24.9]} 33. Ne7
{[%clk 0:01:21.5]} 33... Qe6 {[%clk 0:01:23.1]} 34. Nxg6+ {[%clk 0:01:21.5]}
34... hxg6 {[%clk 0:01:24]} 35. Qe3 {[%clk 0:01:20.5]} 35... Qxe3 {[%clk
0:01:23.3]} 36. fxe3 {[%clk 0:01:21.4]} 36... Re8 {[%clk 0:01:24]} 37. Rb3
{[%clk 0:01:18.9]} 37... Re6 {[%clk 0:01:24.2]} 38. Kg3 {[%clk 0:01:19.1]} 38...
Rd6 {[%clk 0:01:24.8]} 39. Nd4 {[%clk 0:01:19.1]} 39... Kh7 {[%clk 0:01:25.1]}
40. Kf4 {[%clk 0:01:19.4]} 40... g5+ {[%clk 0:01:25.4]} 41. Ke4 {[%clk
0:01:17.4]} 41... Kg6 {[%clk 0:01:25.3]} 42. Nf5 {[%clk 0:01:17.6]} 42... Re6+
{[%clk 0:01:25.7]} 43. Kd5 {[%clk 0:01:16.8]} 43... Re5+ {[%clk 0:01:25.7]} 44.
Kd4 {[%clk 0:01:17.1]} 44... b5 {[%clk 0:01:24.8]} 45. e4 {[%clk 0:01:15.5]}
45... Kh7 {[%clk 0:01:23.1]} 46. Ne3 {[%clk 0:01:15.6]} 46... Re7 {[%clk
0:01:19.9]} 47. Nd5 {[%clk 0:01:15.7]} 47... Ra7 {[%clk 0:01:20.6]} 48. Rxb5
{[%clk 0:01:13.7]} 48... Ra3 {[%clk 0:01:21]} 49. Ne3 {[%clk 0:01:08.4]} 49...
Ra4+ {[%clk 0:01:20.4]} 50. Kd3 {[%clk 0:01:08.2]} 50... Ra3+ {[%clk 0:01:20.9]}
51. Ke2 {[%clk 0:01:08.4]} 51... Ra2+ {[%clk 0:01:21.5]} 52. Kf3 {[%clk
0:01:08.6]} 52... Ra3 {[%clk 0:01:20.7]} 53. Rb7 {[%clk 0:01:06.8]} 53... Kg6
{[%clk 0:01:20.3]} 54. Re7 {[%clk 0:01:05.9]} 54... Rb3 {[%clk 0:01:19.2]} 55.
Ke2 {[%clk 0:01:01.2]} 55... Rb2+ {[%clk 0:01:19.5]} 56. Kd3 {[%clk 0:01:01.5]}
56... Rb3+ {[%clk 0:01:19.8]} 57. Kd2 {[%clk 0:01:01.6]} 57... Rb2+ {[%clk
0:01:17.9]} 58. Kc3 {[%clk 0:01:00.9]} 58... Rh2 {[%clk 0:01:18.6]} 59. Nf5
{[%clk 0:00:58]} 59... Rxh3+ {[%clk 0:01:18.7]} 60. Kd4 {[%clk 0:00:58.3]} 60...
Kh7 {[%clk 0:01:13]} 61. Rxg7+ {[%clk 0:00:56.9]} 61... Kh8 {[%clk 0:01:13.6]}
62. Rf7 {[%clk 0:00:57.2]} 62... Rh1 {[%clk 0:01:08]} 63. Rxf6 {[%clk
0:00:57.2]} 63... Rg1 {[%clk 0:01:08.4]} 64. Ne3 {[%clk 0:00:50.8]} 64... Kg7
{[%clk 0:01:07.6]} 65. Ra6 {[%clk 0:00:49.1]} 65... Re1 {[%clk 0:01:06.4]} 66.
Nf5+ {[%clk 0:00:48.1]} 66... Kf7 {[%clk 0:01:06.9]} 67. Ke5 {[%clk 0:00:48.2]}
67... Rg1 {[%clk 0:01:06.6]} 68. Ra7+ {[%clk 0:00:48.7]} 68... Ke8 {[%clk
0:01:07]} 69. Kf6 {[%clk 0:00:48.6]} 69... Rxg4 {[%clk 0:01:01.8]} 70. e5 {[%clk
0:00:49]} 70... Ra4 {[%clk 0:00:57.7]} 71. Rxa4 {[%clk 0:00:47.7]} 1-0

[Event "Early-Titled-Tuesday-Blitz-May-07-2024"]
[Site "Chess.com"]
[Date "2024.05.07"]
[Round "5"]
[White "tantaan"]
[Black "Chesmc"]
[Result "1-0"]
[WhiteElo "2488"]
[BlackElo "2113"]
[TimeControl "180+1"]
[EndTime "8:59:01 PDT"]
[Termination "tantaan won by checkmate"]

1. e4 {[%clk 0:02:58.4]} 1... Nf6 {[%clk 0:02:58.6]} 2. e5 {[%clk 0:02:58.2]}
2... Nd5 {[%clk 0:02:58.1]} 3. d4 {[%clk 0:02:56.4]} 3... d6 {[%clk 0:02:54.6]}
4. c4 {[%clk 0:02:53.8]} 4... Nb6 {[%clk 0:02:53.6]} 5. f4 {[%clk 0:02:54.5]}
5... dxe5 {[%clk 0:02:52.6]} 6. fxe5 {[%clk 0:02:53.4]} 6... Bf5 {[%clk
0:02:52]} 7. Nc3 {[%clk 0:02:52.1]} 7... e6 {[%clk 0:02:52]} 8. Nf3 {[%clk
0:02:52.2]} 8... Be7 {[%clk 0:02:51.1]} 9. Bd3 {[%clk 0:02:46.5]} 9... Bg4
{[%clk 0:02:37.5]} 10. c5 {[%clk 0:02:32.7]} 10... Nd5 {[%clk 0:02:27.7]} 11.
O-O {[%clk 0:02:32.8]} 11... Nc6 {[%clk 0:02:22.2]} 12. Be4 {[%clk 0:02:16.9]}
12... Qd7 {[%clk 0:02:16.4]} 13. h3 {[%clk 0:02:13.5]} 13... Bh5 {[%clk
0:02:14]} 14. Nxd5 {[%clk 0:02:00.7]} 14... exd5 {[%clk 0:02:12]} 15. Bc2 {[%clk
0:02:00.1]} 15... O-O-O {[%clk 0:01:54.1]} 16. Be3 {[%clk 0:01:58.5]} 16... Bg6
{[%clk 0:01:44.3]} 17. Rb1 {[%clk 0:01:48.6]} 17... f6 {[%clk 0:01:28.3]} 18.
exf6 {[%clk 0:01:24.9]} 18... Bxf6 {[%clk 0:01:27.7]} 19. b4 {[%clk 0:01:25.6]}
19... Rde8 {[%clk 0:01:24.1]} 20. Bf2 {[%clk 0:01:25.9]} 20... Be4 {[%clk
0:01:22.1]} 21. b5 {[%clk 0:01:17]} 21... Nb8 {[%clk 0:00:59.8]} 22. Rb2 {[%clk
0:01:10.7]} 22... Rhf8 {[%clk 0:00:51.6]} 23. c6 {[%clk 0:01:10.2]} 23... bxc6
{[%clk 0:00:50.1]} 24. bxc6 {[%clk 0:01:11.1]} 24... Nxc6 {[%clk 0:00:44.8]} 25.
Ba4 {[%clk 0:01:11.2]} 25... Qd6 {[%clk 0:00:34.5]} 26. Qb3 {[%clk 0:01:05.5]}
26... a5 {[%clk 0:00:29.9]} 27. Qb7+ {[%clk 0:01:01.1]} 27... Kd7 {[%clk
0:00:29.6]} 28. Rc1 {[%clk 0:00:56.6]} 28... Bxf3 {[%clk 0:00:27]} 29. Qxc6+
{[%clk 0:00:51.5]} 29... Qxc6 {[%clk 0:00:20]} 30. Bxc6+ {[%clk 0:00:52.2]}
30... Kd6 {[%clk 0:00:19.5]} 31. Bxe8 {[%clk 0:00:47]} 31... Be4 {[%clk
0:00:17.3]} 32. Bh5 {[%clk 0:00:43.6]} 32... Bg5 {[%clk 0:00:18.2]} 33. Rd1
{[%clk 0:00:37.1]} 33... g6 {[%clk 0:00:19.1]} 34. Bf3 {[%clk 0:00:34.1]} 34...
a4 {[%clk 0:00:20]} 35. Bxe4 {[%clk 0:00:34]} 35... dxe4 {[%clk 0:00:20.9]} 36.
Bg3+ {[%clk 0:00:33.9]} 36... Kd5 {[%clk 0:00:20.8]} 37. Rb5+ {[%clk 0:00:33.5]}
37... Kc4 {[%clk 0:00:20.6]} 38. Rxg5 {[%clk 0:00:33.7]} 38... h6 {[%clk
0:00:19.4]} 39. Rc5+ {[%clk 0:00:33.4]} 39... Kb4 {[%clk 0:00:18.4]} 40. Rxc7
{[%clk 0:00:28.1]} 40... e3 {[%clk 0:00:19.3]} 41. Re1 {[%clk 0:00:25.7]} 41...
Re8 {[%clk 0:00:18.3]} 42. Be5 {[%clk 0:00:26.1]} 42... a3 {[%clk 0:00:18]} 43.
Rxe3 {[%clk 0:00:26.2]} 43... g5 {[%clk 0:00:17.8]} 44. Rb3+ {[%clk 0:00:26.4]}
44... Ka5 {[%clk 0:00:17.6]} 45. Ra7# {[%clk 0:00:26.9]} 1-0

[Event "Early-Titled-Tuesday-Blitz-May-07-2024"]
[Site "Chess.com"]
[Date "2024.05.07"]
[Round "5"]
[White "sewlins"]
[Black "BashirliSaadat"]
[Result "0-1"]
[WhiteElo "2200"]
[BlackElo "2396"]
[TimeControl "180+1"]
[EndTime "8:59:01 PDT"]
[Termination "BashirliSaadat won by resignation"]

1. e4 {[%clk 0:03:00.9]} 1... c5 {[%clk 0:02:58.2]} 2. Nf3 {[%clk 0:02:54.5]}
2... Nc6 {[%clk 0:02:57.7]} 3. Bb5 {[%clk 0:02:53.8]} 3... d6 {[%clk 0:02:57.4]}
4. O-O {[%clk 0:02:41.7]} 4... Bd7 {[%clk 0:02:54.4]} 5. Re1 {[%clk 0:02:41.3]}
5... Nf6 {[%clk 0:02:49.7]} 6. Bf1 {[%clk 0:02:32.6]} 6... g6 {[%clk 0:02:46.1]}
7. c3 {[%clk 0:02:31.8]} 7... Bg4 {[%clk 0:02:42.7]} 8. h3 {[%clk 0:02:31.4]}
8... Bxf3 {[%clk 0:02:36.6]} 9. Qxf3 {[%clk 0:02:32.3]} 9... e5 {[%clk
0:02:35.7]} 10. Bc4 {[%clk 0:02:15.8]} 10... Bg7 {[%clk 0:02:34.7]} 11. d3
{[%clk 0:01:59.7]} 11... O-O {[%clk 0:02:32.6]} 12. a4 {[%clk 0:01:59.2]} 12...
Nd7 {[%clk 0:02:27.2]} 13. Nd2 {[%clk 0:01:56]} 13... Kh8 {[%clk 0:02:24.4]} 14.
Nf1 {[%clk 0:01:53.8]} 14... f5 {[%clk 0:02:23.5]} 15. exf5 {[%clk 0:01:49]}
15... Rxf5 {[%clk 0:02:22.8]} 16. Qg3 {[%clk 0:01:43.6]} 16... Nf6 {[%clk
0:02:11.9]} 17. Ne3 {[%clk 0:01:35.3]} 17... Nh5 {[%clk 0:02:08.8]} 18. Qh2
{[%clk 0:01:28.4]} 18... Rf8 {[%clk 0:02:06.3]} 19. Nd5 {[%clk 0:01:25.2]} 19...
a6 {[%clk 0:02:01.1]} 20. h4 {[%clk 0:01:15.8]} 20... Rb8 {[%clk 0:01:34.7]} 21.
Bg5 {[%clk 0:01:12.2]} 21... Qd7 {[%clk 0:01:27.9]} 22. a5 {[%clk 0:01:11.1]}
22... Qf5 {[%clk 0:01:25.8]} 23. Re2 {[%clk 0:00:58.2]} 23... h6 {[%clk
0:01:16.7]} 24. Be3 {[%clk 0:00:54]} 24... Qg4 {[%clk 0:01:11.7]} 25. Rd2 {[%clk
0:00:40]} 25... Rbe8 {[%clk 0:01:02]} 26. b4 {[%clk 0:00:32.3]} 26... cxb4
{[%clk 0:00:59.9]} 27. cxb4 {[%clk 0:00:33.2]} 27... e4 {[%clk 0:00:59.6]} 28.
Rad1 {[%clk 0:00:29.8]} 28... Ne5 {[%clk 0:00:57.3]} 29. Bd4 {[%clk 0:00:15.2]}
29... Nf3+ {[%clk 0:00:54.6]} 30. Kh1 {[%clk 0:00:14.5]} 30... Nxh2 {[%clk
0:00:53.3]} 31. Bxg7+ {[%clk 0:00:14.4]} 31... Nxg7 {[%clk 0:00:53.7]} 32. Kxh2
{[%clk 0:00:15.2]} 32... Qxh4+ {[%clk 0:00:53.7]} 33. Kg1 {[%clk 0:00:15.7]}
33... exd3 {[%clk 0:00:53]} 34. Bxd3 {[%clk 0:00:16.3]} 34... Re6 {[%clk
0:00:50.9]} 35. Ne3 {[%clk 0:00:15.8]} 35... Rfe8 {[%clk 0:00:50.7]} 36. Bc4
{[%clk 0:00:16.1]} 36... Rf6 {[%clk 0:00:49.9]} 37. Bd5 {[%clk 0:00:14.7]} 37...
Qxb4 {[%clk 0:00:48.7]} 38. Rd4 {[%clk 0:00:12.7]} 38... Qxa5 {[%clk 0:00:48]}
39. Bxb7 {[%clk 0:00:12.7]} 39... Qa2 {[%clk 0:00:45.5]} 40. Bc6 {[%clk
0:00:11.7]} 40... Qxf2+ {[%clk 0:00:44.8]} 41. Kh1 {[%clk 0:00:12.6]} 41... Qxe3
{[%clk 0:00:44.2]} 42. Bxe8 {[%clk 0:00:13.1]} 42... Qxe8 {[%clk 0:00:38.4]} 0-1

[Event "Early-Titled-Tuesday-Blitz-May-07-2024"]
[Site "Chess.com"]
[Date "2024.05.07"]
[Round "5"]
[White "Phuzer"]
[Black "Revan_2002"]
[Result "1-0"]
[WhiteElo "2619"]
[BlackElo "2728"]
[TimeControl "180+1"]
[EndTime "8:59:02 PDT"]
[Termination "Phuzer won by checkmate"]

1. d4 {[%clk 0:02:57]} 1... Nf6 {[%clk 0:02:59.6]} 2. c4 {[%clk 0:02:57.3]} 2...
e6 {[%clk 0:02:56]} 3. Nc3 {[%clk 0:02:57.7]} 3... Bb4 {[%clk 0:02:53]} 4. g3
{[%clk 0:02:58.1]} 4... d5 {[%clk 0:02:50.1]} 5. Bg2 {[%clk 0:02:58.2]} 5... O-O
{[%clk 0:02:49.2]} 6. Nf3 {[%clk 0:02:58.7]} 6... dxc4 {[%clk 0:02:48.8]} 7. O-O
{[%clk 0:02:58.9]} 7... Nc6 {[%clk 0:02:32.5]} 8. Qa4 {[%clk 0:02:57.5]} 8...
Bd7 {[%clk 0:02:09.2]} 9. Bg5 {[%clk 0:02:54.6]} 9... Bxc3 {[%clk 0:01:56.3]}
10. bxc3 {[%clk 0:02:54.1]} 10... Nxd4 {[%clk 0:01:56.2]} 11. Qxc4 {[%clk
0:02:54.3]} 11... Nxf3+ {[%clk 0:01:42.5]} 12. Bxf3 {[%clk 0:02:55.2]} 12... Bc6
{[%clk 0:01:33.2]} 13. Bxc6 {[%clk 0:02:53.7]} 13... bxc6 {[%clk 0:01:33.2]} 14.
Rfd1 {[%clk 0:02:48.8]} 14... Qe7 {[%clk 0:01:27.4]} 15. Qxc6 {[%clk 0:02:46.4]}
15... h6 {[%clk 0:01:26.9]} 16. Bxf6 {[%clk 0:02:46.2]} 16... Qxf6 {[%clk
0:01:27.8]} 17. Rd7 {[%clk 0:02:43.7]} 17... h5 {[%clk 0:01:17.2]} 18. Rad1
{[%clk 0:02:40.5]} 18... h4 {[%clk 0:01:14.7]} 19. Rxc7 {[%clk 0:02:40.6]} 19...
Rab8 {[%clk 0:01:03.1]} 20. Qf3 {[%clk 0:02:27]} 20... Qxf3 {[%clk 0:00:48.5]}
21. exf3 {[%clk 0:02:27.9]} 21... Rb2 {[%clk 0:00:47.7]} 22. Rxa7 {[%clk
0:02:25.5]} 22... Rc2 {[%clk 0:00:47.7]} 23. Rad7 {[%clk 0:02:11.1]} 23... h3
{[%clk 0:00:33.9]} 24. Rd8 {[%clk 0:01:30.5]} 24... g5 {[%clk 0:00:33.3]} 25.
Rxf8+ {[%clk 0:01:28]} 25... Kxf8 {[%clk 0:00:34.2]} 26. Ra1 {[%clk 0:01:28.3]}
26... Rxc3 {[%clk 0:00:34.4]} 27. a4 {[%clk 0:01:28.6]} 27... Rxf3 {[%clk
0:00:18.5]} 28. a5 {[%clk 0:01:29]} 28... Rd3 {[%clk 0:00:18.2]} 29. a6 {[%clk
0:01:29.3]} 29... Rd8 {[%clk 0:00:18.7]} 30. Kf1 {[%clk 0:01:29.5]} 30... Ke7
{[%clk 0:00:04.1]} 31. Ke2 {[%clk 0:01:29.7]} 31... g4 {[%clk 0:00:03.5]} 32.
Ke3 {[%clk 0:01:29.3]} 32... f5 {[%clk 0:00:03.1]} 33. a7 {[%clk 0:01:23]} 33...
Ra8 {[%clk 0:00:02.5]} 34. Ra6 {[%clk 0:01:23.6]} 34... Kf6 {[%clk 0:00:02.3]}
35. Kf4 {[%clk 0:01:21.6]} 35... Kf7 {[%clk 0:00:01.4]} 36. Ke5 {[%clk
0:01:19.2]} 36... Kg6 {[%clk 0:00:01.8]} 37. Rxe6+ {[%clk 0:01:11]} 37... Kg5
{[%clk 0:00:01.7]} 38. Ra6 {[%clk 0:01:11.9]} 38... Kh5 {[%clk 0:00:02.1]} 39.
Kxf5 {[%clk 0:00:59.5]} 39... Rf8+ {[%clk 0:00:02.3]} 40. Ke4 {[%clk 0:00:56.3]}
40... Re8+ {[%clk 0:00:02.3]} 41. Kd5 {[%clk 0:00:52.5]} 41... Rd8+ {[%clk
0:00:01.9]} 42. Kc5 {[%clk 0:00:52.7]} 42... Rc8+ {[%clk 0:00:01.3]} 43. Kb5
{[%clk 0:00:53]} 43... Rd8 {[%clk 0:00:01.3]} 44. a8=Q {[%clk 0:00:45.2]} 44...
Rd5+ {[%clk 0:00:00.1]} 45. Qxd5# {[%clk 0:00:45.1]} 1-0